[Event "SVK ECo-C Extraliga 2021-22"]
[Site "Slovakia"]
[Date "2022.05.07"]
[Round "7.4"]
[White "Pcola, Pavol"]
[Black "Bures, Jaroslav"]
[Result "1-0"]
[ECO "A11"]
[WhiteElo "2379"]
[BlackElo "2411"]
[Annotator "TA"]
[PlyCount "147"]
[EventDate "2021.10.21"]
[EventType "team-tourn"]
[EventCountry "SVK"]
[SourceTitle "playchess.com"]
[Source "ChessBase"]
[SourceQuality "1"]
[TimeControl "40/5400+30:1800+30"]

{[%evp 12,147,-4,-10,-11,-29,-29,-27,-22,-22,-20,-24,-18,-42,-8,-16,-14,-25,-31,-31,-33,-47,-47,-51,-41,-52,-45,-46,6,12,27,20,139,133,116,140,166,156,152,152,173,174,163,135,639,634,839,833,797,405,808,730,691,576,569,562,539,522,29967,29968,29968,29967,29967,29968,29967,29969,29969,29964,29966,29967,29968,29968,29970,29971,29971,29969,29970,29971,29970,29972,29972,29973,29973,29973,29973,29974,29974,29975,29975,29969,29969,29970,29973,29969,29971,29972,29971,29973,29973,29974,29974,29971,29967,29968,29968,29969,29969,1180,29968,29971,29971,29972,29962,29964,29973,29974,29974,29975,29976,29976,29976,29977,29977,29978,29978,29977,29976,0,29979,29977,29978,29979,29979,29980,29980,29981,29981,29982]} 1. c4 {[%emt 0:07:26]} c6 {[%emt 0:00:44]} 2. Nf3 {[%emt 0:00:25]} d5 {[%emt 0:00:04]} 3. g3 {[%emt 0:00:11]} g6 {[%emt 0:00:25]} 4. Bg2 {[%emt 0:01:08]} Bg7 {[%emt 0:00:05]} 5. O-O {[%emt 0:00:20]} e5 {[%emt 0:03:05]} 6. d3 {[%emt 0:02:13]} Ne7 {[%emt 0:01:43]} 7. Nbd2 {[%emt 0:02:29] 7.e4 is the modern continuation.} O-O {[%emt 0:01:31] A07: Réti Opening: New York and Capablanca Systems.} 8. Rb1 {[%emt 0:02:29]} a5 {[%emt 0:08:33]} 9. a3 {[%emt 0:04:43]} b5 {[%emt 0:06:29] [#] Black has an edge.} 10. cxb5 $146 {[%emt 0:02:13]} ({Predecessor:} 10. b4 bxc4 11. dxc4 Bf5 12. Rb2 e4 13. Nh4 Be6 14. cxd5 cxd5 15. Qc2 axb4 16. Rxb4 {0-1 (25) Pacher,M (2459)-Zilka,S (2523) Stara Lubovna 2017}) 10... cxb5 {[%emt 0:00:03]} 11. b4 {[%emt 0:00:07]} a4 {[%emt 0:10:40]} 12. Bb2 {[%emt 0:00:32]} Nd7 {[%emt 0:00:05]} 13. Rc1 {[%emt 0:01:01]} Bb7 {[%emt 0:01:16]} 14. Qc2 {[%emt 0:01:26]} Rc8 {[%emt 0:01:33] Prevents Qc7.} 15. Qb1 {[%emt 0:00:05]} d4 {[%emt 0:13:49]} 16. Ne4 {[%emt 0:03:06]} Qb6 {[%emt 0:04:46]} 17. Rxc8 {[%emt 0:01:07]} Rxc8 {[%emt 0:01:48]} 18. Rc1 {[%emt 0:00:13]} Rxc1+ {[%emt 0:05:49]} 19. Qxc1 {[%emt 0:00:52]} Bxe4 {[%emt 0:03:57]} (19... f6 $15) 20. dxe4 $11 {[%emt 0:00:06]} Qc6 {[%emt 0:00:09]} 21. e3 {[%emt 0:06:06]} Nb6 {[%emt 0:00:18]} (21... dxe3 $1 $11 {keeps the balance.} 22. Qxe3 Nc8) 22. exd4 $16 {[%emt 0:05:58]} exd4 {[%emt 0:00:02] [#]} 23. Qa1 $1 {[%emt 0:02:06]} (23. Qf4 $6 Qc2 24. Qd6 Qxb2 $11) 23... Qxe4 {[%emt 0:08:11] Strongly threatening ...Nc4.} 24. Bxd4 {[%emt 0:07:13]} ({Worse is} 24. Nxd4 Qe5 $11) 24... Bxd4 {[%emt 0:00:07]} 25. Qxd4 {[%emt 0:00:05]} ({Don't play} 25. Nxd4 $6 Qe5 $16) 25... Qb1+ {[%emt 0:02:50]} 26. Bf1 {[%emt 0:00:07]} Ned5 {[%emt 0:00:05]} 27. Qe5 {[%emt 0:06:10]} Qb3 $2 {[%emt 0:01:22][%mdl 8192]} (27... Qc1 $16 28. Ng5 (28. Qe8+ Kg7 $16) 28... Qc6) 28. Ng5 $18 {[%emt 0:00:33] White threatens Qe8+ and mate.} Nxb4 {[%emt 0:03:52]} 29. Qb8+ {[%emt 0:01:20]} Kg7 {[%emt 0:00:15]} 30. Qxb6 {[%emt 0:00:07]} Qxa3 {[%emt 0:02:36]} (30... Nc2 $142 31. Ne4 (31. Bxb5 Qb1+ 32. Kg2 Ne1+ 33. Kf1 Nd3+ 34. Kg2 Ne1+ 35. Kh1 Nf3+ 36. Kg2 Ne1+ $11) 31... h5 32. Qxb5 Qxb5 33. Bxb5 Nxa3) 31. Qd4+ {[%emt 0:01:01]} Kg8 {[%emt 0:00:38]} 32. Bxb5 {[%emt 0:01:18] Qd8+ would kill now.} Qc1+ {[%emt 0:01:35]} 33. Bf1 {[%emt 0:02:13] Threatening mate with Qd8+.} Qxg5 {[%emt 0:10:57]} 34. Qxb4 {[%emt 0:00:13]} h5 {[%emt 0:01:48]} 35. Qxa4 {[%emt 0:02:11]} Qe5 {[%emt 0:00:44]} 36. Qf4 {[%emt 0:01:20]} Qa1 {[%emt 0:01:13]} 37. Kg2 {[%emt 0:00:19]} Qa8+ {[%emt 0:00:51]} 38. Qf3 {[%emt 0:00:10]} Qc8 {[%emt 0:00:22]} 39. Qf6 {[%emt 0:00:25]} Qa8+ {[%emt 0:00:22]} 40. Kg1 {[%emt 0:00:05]} Qd5 {[%emt 0:00:14]} 41. h4 {[%emt 0:30:07]} Qd1 {[%emt 0:30:29]} 42. Kg2 {[%emt 0:00:13]} Qd5+ {[%emt 0:00:21]} 43. Kh2 {[%emt 0:00:07]} Qe4 {[%emt 0:00:30]} 44. Bg2 {[%emt 0:00:21]} Qd3 {[%emt 0:00:22]} 45. Bf3 {[%emt 0:00:31]} Kf8 {[%emt 0:01:26]} 46. Kg2 {[%emt 0:00:32]} Kg8 {[%emt 0:00:06]} 47. Qe5 {[%emt 0:00:45]} Qd7 {[%emt 0:01:27]} 48. Bd5 {[%emt 0:00:43]} Qd8 {[%emt 0:00:08]} 49. Bc4 {[%emt 0:02:52]} Qc8 {[%emt 0:00:30]} 50. Bb5 {[%emt 0:02:39]} Qa8+ {[%emt 0:00:41]} 51. Kg1 {[%emt 0:00:22]} Qa5 {[%emt 0:00:48]} 52. Kh2 {[%emt 0:05:28]} Qb6 {[%emt 0:00:46]} 53. Kg2 {[%emt 0:00:06]} Qb7+ {[%emt 0:00:34]} 54. Kg1 {[%emt 0:00:15]} Qf3 {[%emt 0:01:18]} 55. Bc4 {[%emt 0:00:33]} Qd1+ {[%emt 0:02:11]} 56. Kh2 {[%emt 0:02:20]} Qd8 {[%emt 0:00:49]} 57. Bb3 {[%emt 0:06:12]} Qd7 {[%emt 0:00:00]} 58. Qf6 {[%emt 0:00:00]} Kf8 {[%emt 0:00:00]} 59. Qh8+ {[%emt 0:00:00]} Ke7 {[%emt 0:00:00] [#]} 60. Bxf7 $1 {[%emt 0:00:00]} Kxf7 {[%emt 0:00:00] KQ-KQ} 61. Qh7+ {[%emt 0:00:00]} Ke8 {[%emt 0:00:00]} 62. Qxg6+ {[%emt 0:00:00]} Kf8 {[%emt 0:00:00]} 63. Qh6+ {[%emt 0:00:00]} Kg8 {[%emt 0:00:00]} 64. Qxh5 {[%emt 0:00:00]} Qa7 {[%emt 0:00:00]} 65. Qg6+ {[%emt 0:00:00]} Kh8 {[%emt 0:00:00]} 66. Qf6+ {[%emt 0:00:00]} Kg8 {[%emt 0:00:00]} 67. h5 {[%emt 0:00:00][%cal Bh4h5,Bh5h6][%mdl 32]} Qc5 {[%emt 0:00:00]} 68. Qg6+ {[%emt 0:00:00]} Kh8 {[%emt 0:00:00]} 69. Qf6+ $2 {[%emt 0:00:00]} (69. Qe8+ {mates} Kg7 70. Qg6+ Kh8 71. Qf6+ Kg8 72. h6 Qc7 73. Kh3 Qh7 74. g4) 69... Kh7 $2 {[%emt 0:00:00][%mdl 8192]} (69... Kg8 $11 70. h6 Qh5+ 71. Kg2 Qg4 72. Qg7+ Qxg7 73. hxg7 Kxg7 74. Kf3 Kf6) 70. Kg1 {[%emt 0:00:00] White mates.} Qc1+ {[%emt 0:00:00]} 71. Kg2 {[%emt 0:00:00]} Qd1 {[%emt 0:00:00]} 72. h6 {[%emt 0:00:00][%csl Gh6][%cal Rf6g7]} Qd5+ {[%emt 0:00:00]} 73. f3 {[%emt 0:00:00][%csl Gh6][%cal Rf6g7]} Qd2+ {[%emt 0:00:00]} 74. Kh3 {[%emt 0:00:00] Weighted Error Value: White=0.06 (flawless) /Black=0.60} 1-0

[Event "SVK ECo-C Extraliga 2021-22"]
[Site "Slovakia"]
[Date "2022.05.07"]
[Round "7.4"]
[White "Mikrut, Dariusz"]
[Black "Zvarik, Martin"]
[Result "1-0"]
[ECO "A67"]
[WhiteElo "2361"]
[BlackElo "2236"]
[Annotator "TA"]
[PlyCount "75"]
[EventDate "2021.10.21"]
[EventType "team-tourn"]
[EventCountry "SVK"]
[SourceTitle "playchess.com"]
[Source "ChessBase"]
[SourceQuality "1"]
[TimeControl "40/5400+30:1800+30"]

{[%evp 16,75,44,17,41,15,24,30,43,49,20,24,51,41,44,38,216,141,134,53,60,57,93,47,50,51,71,64,68,74,81,52,74,0,0,0,10,0,25,45,321,76,77,-81,0,-16,0,0,0,9,0,0,8,0,152,156,642,449,432,431,331,-8]} 1. d4 {[%emt 0:11:28]} Nf6 {[%emt 0:00:20]} 2. c4 {[%emt 0:00:52]} c5 {[%emt 0:01:19]} 3. d5 {[%emt 0:01:11]} e6 {[%emt 0:00:27]} 4. Nc3 {[%emt 0:00:15]} exd5 {[%emt 0:00:38]} 5. cxd5 {[%emt 0:00:47]} d6 {[%emt 0:00:27]} 6. e4 {[%emt 0:00:06]} g6 {[%emt 0:00:44]} 7. f4 {[%emt 0:01:03]} Bg7 {[%emt 0:03:42]} 8. Bb5+ {[%emt 0:07:52]} Nfd7 {[%emt 0:11:21]} 9. a4 {[%emt 0:01:22]} Na6 {[%emt 0:05:02] A67: Modern Benoni: Taimanov Variation.} 10. Nf3 {[%emt 0:03:45]} Nb4 {[%emt 0:07:52]} 11. O-O {[%emt 0:03:07]} a6 {[%emt 0:02:58] White has an edge.} 12. Bxd7+ {[%emt 0:03:00]} Bxd7 {[%emt 0:02:28]} 13. f5 {[%emt 0:00:07] [#]} gxf5 $146 {[%emt 0:08:42]} ({Predecessor:} 13... O-O 14. Bg5 f6 15. Bf4 gxf5 16. Bxd6 Re8 17. Nd2 fxe4 18. Ncxe4 Nxd5 19. Bxc5 Bc6 {½-½ (51) Lupulescu,C (2656)-Pantsulaia,L (2553) Tornelo INT 2021}) 14. Bg5 {[%emt 0:10:08]} f6 {[%emt 0:09:14]} 15. Bf4 $36 {[%emt 0:00:04][%mdl 2048] White is more active.} Qe7 {[%emt 0:00:48]} (15... O-O $14) 16. exf5 {[%emt 0:10:01] And now Re1 would win.} O-O-O {[%emt 0:00:09]} 17. Nh4 {[%emt 0:02:08]} (17. Nd2 $16 {aiming for Re1.} Bxf5 18. Bxd6 $1 Qxd6 19. Nc4 (19. Rxf5 Qd7 $14)) 17... Rhe8 $14 {[%emt 0:05:46]} 18. Qd2 {[%emt 0:06:56]} Bf8 {[%emt 0:02:28]} 19. g4 {[%emt 0:18:10]} (19. Rae1 $16 Qf7 20. Qd1) 19... Qg7 {[%emt 0:14:59]} 20. h3 {[%emt 0:00:11]} Re5 {[%emt 0:04:24]} 21. Bxe5 {[%emt 0:01:28]} dxe5 {[%emt 0:01:24]} 22. Rad1 {[%emt 0:04:04]} Kb8 {[%emt 0:03:00]} 23. Ng2 {[%emt 0:00:29]} c4 {[%emt 0:02:57][%cal Oh7h5]} 24. Ne3 {[%emt 0:00:19]} (24. Qe2 $16) 24... h5 $1 $11 {[%emt 0:01:12]} 25. Kh2 {[%emt 0:00:43]} hxg4 {[%emt 0:01:27]} 26. Nxg4 {[%emt 0:00:06]} Nd3 {[%emt 0:01:00]} 27. Ne4 {[%emt 0:02:57] Qa5 is the strong threat.} Bxa4 $2 {[%emt 0:01:03][%mdl 8192]} ({Black should play} 27... Be7 $1 $14) 28. Ra1 $2 {[%emt 0:00:05]} ({Stronger than} 28. Ngxf6 Bxd1 29. Qxd1 Qc7 $17) (28. Qa5 $18 {and the rest is easy.} Qc7 29. Qxa4) 28... Bb5 $16 {[%emt 0:02:49]} 29. Nexf6 {[%emt 0:00:18]} (29. Ngxf6 $16 {Threatens to win with Rg1.} Be7 30. Ng4 (30. Rg1 Qh8 $14)) 29... Nf4 {[%emt 0:01:01]} (29... Bb4 $17 30. Qg2 Qc7) 30. Rad1 {[%emt 0:03:22]} ({Wrong is} 30. Nxe5 $2 Qxf6 31. Qxf4 Bd6 $19) 30... Bd6 {[%emt 0:00:45] Strongly threatening ...Rh8.} 31. Ne4 {[%emt 0:00:17]} Rh8 {[%emt 0:00:25][%csl LRg4,LRh3]} 32. Rxf4 $1 {[%emt 0:02:24]} exf4 {[%emt 0:00:22]} 33. Qc3 {[%emt 0:00:43]} Qxc3 {[%emt 0:02:00]} 34. bxc3 {[%emt 0:00:11]} Bf8 {[%emt 0:01:19] [#]} ({Black should try} 34... Kc7 $11) 35. Ne5 $1 {[%emt 0:01:12] White is more active.} Rh7 $2 {[%emt 0:02:48]} (35... Ba4 $16 36. Rd4 Rh5) 36. f6 {[%emt 0:00:11] Hoping for Rg1.} Rh5 {[%emt 0:00:25]} 37. Ng6 {[%emt 0:00:15][%csl LRf4,LRf8] Pair of Knights!} Bh6 {[%emt 0:00:42] [#]} 38. Rf1 $2 {[%emt 0:07:18][%mdl 32768] Weighted Error Value: White=0.42/Black=0.63. Loss on time!?} (38. d6 $1 $18 {[%cal Rd6d7]}) 1-0

[Event "SVK ECo-C Extraliga 2021-22"]
[Site "Slovakia"]
[Date "2022.05.07"]
[Round "7.4"]
[White "Urhegyi, Marton"]
[Black "Plachetka, Jan"]
[Result "1/2-1/2"]
[ECO "B33"]
[WhiteElo "2253"]
[BlackElo "2311"]
[Annotator "TA"]
[PlyCount "45"]
[EventDate "2021.10.21"]
[EventType "team-tourn"]
[EventCountry "SVK"]
[SourceTitle "playchess.com"]
[Source "ChessBase"]
[SourceQuality "1"]
[TimeControl "40/5400+30:1800+30"]

{[%evp 29,45,29,56,23,19,12,28,32,28,21,17,-23,-14,-21,-2,-13,0,0]} 1. e4 {[%emt 0:00:04]} c5 {[%emt 0:00:25]} 2. Nf3 {[%emt 0:00:06][%cal Bg1f3,Bf3d4,Bd4b5,Bb5a3,Ba3c2][%mdl 32]} e6 {[%emt 0:01:40]} 3. d4 {[%emt 0:00:06]} cxd4 {[%emt 0:00:06]} 4. Nxd4 {[%emt 0:00:05]} Nc6 {[%emt 0:00:15]} 5. Nc3 {[%emt 0:00:22]} Nf6 {[%emt 0:00:48]} 6. Ndb5 {[%emt 0:01:09]} d6 {[%emt 0:03:59]} 7. Bf4 {[%emt 0:00:36]} e5 {[%emt 0:00:26]} 8. Bg5 {[%emt 0:00:13]} a6 {[%emt 0:00:10]} 9. Na3 {[%emt 0:00:06]} b5 {[%emt 0:00:18]} 10. Nd5 {[%emt 0:00:10]} Be7 {[%emt 0:00:37]} 11. Bxf6 {[%emt 0:00:21]} Bxf6 {[%emt 0:00:07]} 12. c3 {[%emt 0:00:19]} O-O {[%emt 0:01:16]} 13. Nc2 {[%emt 0:00:12]} Bg5 14. a4 {[%emt 0:00:29]} bxa4 {[%emt 0:04:14]} 15. Rxa4 {[%emt 0:00:13]} Bb7 {[%emt 0:07:59]} 16. h4 {[%emt 0:06:00] B33: Sicilian: Pelikan and Sveshnikov Variations.} Bh6 {[%emt 0:03:31]} 17. Bc4 {[%emt 0:05:24]} a5 {[%emt 0:03:52]} 18. Nce3 {[%emt 0:21:44] White has an edge.} Bxe3 {[%emt 0:03:07]} 19. Nxe3 {[%emt 0:14:19]} ({Much worse is} 19. fxe3 Ne7 $11) 19... Ne7 {[%emt 0:02:56] [#]} 20. Bd5 $146 {[%emt 0:04:49]} ({Predecessor:} 20. Qd3 Kh8 21. O-O f5 22. Nxf5 Bxe4 23. Qxe4 Rxf5 24. Be2 Rb8 25. Rfa1 Qb6 26. Bf3 Qxb2 27. Qe1 {½-½ (45) Steiger,W (2427)-Aupi Royo,J (2350) ICCF email 2016}) 20... Nxd5 {[%emt 0:03:30]} 21. Nxd5 {[%emt 0:00:36] The position is equal.} Rb8 {[%emt 0:06:21]} 22. b3 {[%emt 0:06:26]} Bc6 {[%emt 0:03:54]} 23. Ra3 {[%emt 0:02:55] Weighted Error Value: White=0.14 (very precise) /Black=0.07 (flawless)} 1/2-1/2

[Event "SVK ECo-C Extraliga 2021-22"]
[Site "Slovakia"]
[Date "2022.05.07"]
[Round "7.4"]
[White "Hros, Roman"]
[Black "Piesik, Piotr"]
[Result "0-1"]
[ECO "B10"]
[WhiteElo "2244"]
[BlackElo "2418"]
[Annotator "TA"]
[PlyCount "81"]
[EventDate "2021.10.21"]
[EventType "team-tourn"]
[EventCountry "SVK"]
[SourceTitle "playchess.com"]
[Source "ChessBase"]
[SourceQuality "1"]
[TimeControl "40/5400+30:1800+30"]

{[%evp 16,81,-13,0,31,20,33,29,23,18,47,25,32,42,69,68,74,60,80,79,70,72,89,44,67,30,21,15,25,37,43,0,0,-10,-10,-10,-12,-17,-18,-97,-97,-105,-99,-122,-83,-127,-134,-128,-124,-186,-186,-251,-256,-264,-249,-249,-245,-399,-391,-412,-407,-693,-705,-715,-704,-1272,-1118,-29976]} 1. e4 {[%emt 0:00:30]} c6 {[%emt 0:00:26]} 2. c4 {[%emt 0:00:07]} d5 {[%emt 0:02:11]} 3. cxd5 {[%emt 0:00:30]} cxd5 {[%emt 0:00:05]} 4. exd5 {[%emt 0:00:03]} Nf6 {[%emt 0:00:08]} 5. Qa4+ {[%emt 0:01:50]} Nbd7 {[%emt 0:00:24][%cal Bb8d7,Bd7e5,Be5d3][%mdl 32]} 6. Nc3 {[%emt 0:00:04]} g6 {[%emt 0:00:27]} 7. g3 {[%emt 0:09:06]} Bg7 {[%emt 0:01:28]} 8. Bg2 {[%emt 0:00:37]} O-O {[%emt 0:00:07]} 9. Nge2 {[%emt 0:01:52]} a6 {[%emt 0:07:49] [#] B10: Caro-Kann: 2 d3 and 2 c4.} 10. Qb3 $146 {[%emt 0:10:53]} ({Predecessor:} 10. O-O b5 11. Qb4 Rb8 12. Nd4 a5 13. Qb3 Nc5 14. Qc2 Bd7 15. Nc6 Bxc6 16. dxc6 Rb6 17. d4 {1-0 (52) Shen,T (1508)-Gloeckler,C (1581) Willingen 2021}) 10... Ne5 {[%emt 0:17:04]} 11. O-O {[%emt 0:02:30]} Nd3 $1 {[%emt 0:13:16] White has an edge.} 12. Nd1 {[%emt 0:27:53]} Bf5 {[%emt 0:13:53]} 13. Ne3 {[%emt 0:03:32]} Be4 {[%emt 0:04:39]} 14. Bxe4 {[%emt 0:12:06]} Nxc1 {[%emt 0:00:25]} 15. Raxc1 {[%emt 0:02:27]} Nxe4 {[%emt 0:00:07]} 16. Rc2 {[%emt 0:01:46]} (16. Qxb7 Rb8 17. Qc6 (17. Qxa6 Nxd2 18. Rfd1 Rxb2 $11) 17... Rxb2 $11) 16... b5 {[%emt 0:04:23]} 17. d3 {[%emt 0:01:18]} Nd6 {[%emt 0:00:25]} 18. Rfc1 {[%emt 0:01:01]} Qa5 {[%emt 0:01:40]} 19. Nc3 {[%emt 0:00:54]} Rac8 {[%emt 0:02:27]} 20. Ne4 {[%emt 0:03:21]} Rxc2 {[%emt 0:00:37]} 21. Rxc2 {[%emt 0:00:06]} Qe1+ {[%emt 0:00:46]} 22. Kg2 {[%emt 0:01:11]} Bd4 {[%emt 0:00:35]} 23. Nxd6 {[%emt 0:04:32]} exd6 {[%emt 0:00:33]} 24. Qa3 {[%emt 0:02:18][%csl LRa6,LRd6]} Bxe3 {[%emt 0:01:23]} 25. fxe3 {[%emt 0:00:02]} Qxe3 {[%emt 0:00:09]} 26. Qxd6 {[%emt 0:00:08]} Qxd3 $11 {[%emt 0:00:14][%mdl 4096] Endgame KQR-KQR} 27. Qc6 {[%emt 0:05:52]} (27. Rf2 $11) 27... Qe4+ $17 {[%emt 0:00:38]} 28. Kh3 {[%emt 0:03:15]} Rd8 $36 {[%emt 0:01:48][%mdl 2048] Black has strong initiative.} 29. Rd2 {[%emt 0:03:32]} Qe1 {[%emt 0:01:35]} 30. Qf6 {[%emt 0:00:12]} Qxd2 {[%emt 0:09:56]} 31. Qxd8+ {[%emt 0:00:02] KQ-KQ} Kg7 {[%emt 0:00:03]} 32. Qd6 {[%emt 0:02:11]} (32. d6 $17) 32... Qe2 $19 {[%emt 0:02:52] White must now prevent ...Qf1+.} 33. Qf4 {[%emt 0:00:43] Inhibits Qf1+.} (33. g4 {is a better defense.}) 33... Qh5+ {[%emt 0:00:10]} ({Weaker is} 33... Qxb2 34. Qe3 $17 (34. d6 $2 Qf6 $19)) 34. Kg2 {[%emt 0:00:12]} Qxd5+ {[%emt 0:00:05]} 35. Kf2 {[%emt 0:00:24]} Qc5+ {[%emt 0:01:12]} ({Not} 35... Qxa2 $2 36. Qe5+ f6 37. Qe2) 36. Kf3 $2 {[%emt 0:00:58] [#]} (36. Kf1 {was forced.}) 36... Qc6+ $1 {[%emt 0:00:45]} 37. Ke3 {[%emt 0:00:31]} Qc1+ {[%emt 0:00:11]} 38. Kd4 {[%emt 0:00:10]} (38. Kd3 $142 Qxb2 39. Qg5) 38... Qxb2+ {[%emt 0:00:06] Black is clearly winning.} 39. Kc5 {[%emt 0:00:09]} h5 {[%emt 0:01:26]} 40. h4 {[%emt 0:00:34]} Qxa2 {[%emt 0:00:20][%cal Oa2c4] [#] And now ...Qc4+! would win.} 41. Kd4 {Weighted Error Value: White=0.46/Black=0.08 (flawless)} 0-1

[Event "SVK ECo-C Extraliga 2021-22"]
[Site "Slovakia"]
[Date "2022.05.08"]
[Round "7.4"]
[White "Maslikova, Veronika"]
[Black "Nagy, Gabor"]
[Result "0-1"]
[ECO "B80"]
[WhiteElo "2226"]
[BlackElo "2503"]
[Annotator "TA"]
[PlyCount "74"]
[EventDate "2021.10.21"]
[EventType "team-tourn"]
[EventCountry "SVK"]
[SourceTitle "playchess.com"]
[Source "ChessBase"]
[SourceQuality "1"]
[TimeControl "40/5400+30:1800+30"]

{[%evp 22,74,0,8,4,5,0,13,11,0,0,-18,0,0,0,-83,-30,-70,-62,-126,-133,-134,-136,-196,-183,-185,-188,-181,-138,-176,-172,-164,-113,-241,-179,-493,-493,-456,-488,-442,-454,-1222,-418,-1118,-488,-1012,-996,-1885,-1417,-29977,-29978,-29972,-29957,-29993,-29994]} 1. e4 {[%emt 0:00:09]} c5 {[%emt 0:00:20]} 2. Nf3 {[%emt 0:00:12]} e6 {[%emt 0:00:38]} 3. d4 {[%emt 0:00:16]} cxd4 {[%emt 0:00:11]} 4. Nxd4 {[%emt 0:00:04]} Nc6 {[%emt 0:00:42]} 5. Nc3 {[%emt 0:01:42]} Qc7 {[%emt 0:00:27]} 6. g3 {[%emt 0:01:29]} a6 {[%emt 0:00:38]} 7. Bg2 {[%emt 0:02:00]} d6 {[%emt 0:00:37]} 8. O-O {[%emt 0:00:55]} Bd7 {[%emt 0:00:16]} 9. Re1 {[%emt 0:06:12]} Be7 {[%emt 0:00:22]} 10. a4 {[%emt 0:07:50]} Nf6 {[%emt 0:00:42]} 11. Nb3 {[%emt 0:02:38]} O-O {[%emt 0:01:39]} 12. f4 {[%emt 0:02:44]} Rac8 {[%emt 0:12:12] B80: Sicilian Scheveningen: 6 g3 and 6 Be3, including English Attack.} 13. Be3 {[%emt 0:10:12]} Nb4 {[%emt 0:03:07]} 14. a5 {[%emt 0:03:23]} e5 {[%emt 0:00:45] [#] The position is equal.} 15. Bb6 $146 {[%emt 0:06:33]} ({Predecessor:} 15. Qd2 Rfe8 16. Bb6 Qb8 17. Rac1 Bd8 18. Bxd8 Rcxd8 19. Nd5 Nbxd5 20. exd5 exf4 21. gxf4 {½-½ (66) Claverie,C (2325)-Letreguilly,O (2280) France 1996}) 15... Qb8 {[%emt 0:00:30]} 16. Rc1 {[%emt 0:01:48]} Rfe8 {[%emt 0:02:27]} 17. Rf1 {[%emt 0:08:51]} Bd8 {[%emt 0:05:56]} 18. Bxd8 {[%emt 0:09:27]} (18. Qd2 $11) 18... Rcxd8 {[%emt 0:01:11]} (18... Rexd8 $17 19. Qe2 Qc7) 19. f5 {[%emt 0:01:11]} Bc6 {[%emt 0:01:32]} 20. g4 {[%emt 0:03:05]} (20. Qd2 $15 d5 21. Nd1) 20... d5 $17 {[%emt 0:00:41] Black is more active.} 21. g5 {[%emt 0:01:07]} Nxe4 {[%emt 0:01:53]} 22. Nxe4 {[%emt 0:00:37]} (22. Qe1 $17 Qa7+ 23. Kh1) 22... dxe4 $19 {[%emt 0:00:08]} 23. Qe1 {[%emt 0:00:12] [#]} Nd5 {[%emt 0:00:57]} 24. Bxe4 {[%emt 0:01:12]} Nf4 {[%emt 0:01:40]} 25. Rf3 {[%emt 0:02:33] Inhibits Nh3+.} Qd6 {[%emt 0:02:42]} 26. Qe3 {[%emt 0:00:49]} g6 {[%emt 0:02:25]} (26... Bxe4 $19 27. Qxe4 g6) 27. f6 {[%emt 0:03:47] Loses the game.} (27. fxg6 $17 hxg6 28. Nc5) 27... Qe6 {[%emt 0:00:39] [#] aiming for ...Bxe4.} 28. Re1 $2 {[%emt 0:00:54]} (28. Rg3 {is more resistant.}) 28... Bxe4 {[%emt 0:01:07]} 29. Qxe4 {[%emt 0:00:07]} Nh3+ {[%emt 0:00:25]} 30. Rxh3 {[%emt 0:01:43]} Qxh3 {[%emt 0:00:08]} 31. Nc5 {[%emt 0:02:10]} (31. Nd4 $142) 31... h6 {[%emt 0:00:49]} (31... Rd2 $142 32. Re2 Red8 33. Qxe5 Qg4+ 34. Kf2 Rxe2+ 35. Qxe2 Qf4+ 36. Kg2 Qxg5+ 37. Kh1 Qxc5) 32. gxh6 {[%emt 0:00:46]} (32. Qe3 $142 Qxe3+ 33. Rxe3) 32... Qxh6 {[%emt 0:01:33]} (32... Rd2 $142 33. Re2 Red8) 33. Nxb7 {[%emt 0:01:10]} (33. Qe3 $142 Qxe3+ 34. Rxe3) 33... Rd2 {[%emt 0:00:20]} 34. Re2 {[%emt 0:01:08]} Qg5+ {[%emt 0:00:29]} 35. Rg2 {[%emt 0:00:56]} Rd1+ {[%emt 0:00:24] Black mates.} 36. Kf2 {[%emt 0:00:09]} Qxf6+ {[%emt 0:00:11]} 37. Ke2 {[%emt 0:00:09]} Qf1+ {[%emt 0:00:07] Weighted Error Value: White=1.15/Black=0.59} 0-1